fUSD/lending_fUSD_20250923
["ID","MTS","AMOUNT","RATE_DAILY","PERIOD"]
[387255709,1758664478508,-500.0,0.0003,30]
[387255710,1758664478518,-500.0,0.0003,30]
[387255711,1758664478528,-500.0,0.0003,30]
[387255712,1758664478537,-500.0,0.0003,30]
[387255713,1758664478547,-3600.0,0.0003,31]
[387255714,1758664478556,-1000.0,0.0003,8]
[387255715,1758664478567,-29260.48807986,0.0003,14]
[387255716,1758664478576,-671.5768013,0.0003,2]
[387255717,1758664478586,-15404.50749799,0.0003,30]
[387255718,1758664478596,-300.0,0.0003,5]
[387255719,1758664478605,-17309.6320857,0.0003,14]
[387255720,1758664478615,-250.0,0.0003,7]
[387255721,1758664478626,-1000.0,0.0003,2]
[387255722,1758664478635,-174.0,0.0003,30]
[387255723,1758664478645,-500.0,0.0003,2]
[387255724,1758664478655,-431.83,0.00030004,3]
[387255725,1758664478665,-1219.72,0.00030004,3]
[387255726,1758664478674,-164.12633219,0.00030039,2]
[387255727,1758664478684,-947.43,0.00030095,3]
[387255728,1758664478694,-1262.0,0.00030098,2]
[387255729,1758664478703,-4523.0,0.00030098,2]
[387255730,1758664478713,-227119.49193325,0.000301,30]
[387255731,1758664478723,-306.54803386,0.0003013,2]
[387255732,1758664478733,-2162.98880222,0.0003013,5]
[387255733,1758664478743,-13596.62679562,0.0003013,2]
[387255734,1758664478752,-198.02463382,0.0003013,2]
[387255735,1758664478762,-185.68201156,0.0003013,2]
[387255736,1758664478771,-1201.84311554,0.0003013,2]
[387255737,1758664478781,-7590.50666197,0.0003013,2]
[387255738,1758664478790,-199.58695657,0.0003013,2]
[387255739,1758664478799,-192931.26524049,0.0003013,2]
[387255740,1758664478808,-79306.8255364,0.0003013,2]
[387255741,1758664478818,-853.26385992,0.0003013,7]
[387255742,1758664478828,-909.11310831,0.0003013,5]
[387255743,1758664478837,-40414.77662634,0.0003013,3]
[387255744,1758664478847,-400.0,0.00030136,10]
[387255745,1758664478857,-400.0,0.00030136,10]
[387255746,1758664478866,-444.4260885,0.00030136,10]
[387255747,1758664478875,-400.0,0.00030136,10]
[387255748,1758664478885,-1132.03,0.00030136,10]
[387255749,1758664478894,-1132.03,0.00030136,10]
[387255750,1758664478903,-1132.03,0.00030136,10]
[387255751,1758664478913,-1132.03,0.00030136,10]
[387255752,1758664478923,-1132.03,0.00030136,10]
[387255753,1758664478932,-1132.03,0.00030136,10]
[387255754,1758664478941,-1132.03,0.00030136,10]
[387255755,1758664478951,-1132.03,0.00030136,10]
[387255756,1758664478961,-1132.03,0.00030136,10]
[387255757,1758664478970,-1132.03,0.00030136,10]
[387255758,1758664478979,-1132.03,0.00030136,10]
[387255759,1758664478989,-1132.03,0.00030136,10]
[387255760,1758664478998,-1132.03,0.00030136,10]
[387255761,1758664479007,-1132.03,0.00030136,10]
[387255762,1758664479017,-1132.03,0.00030136,10]
[387255763,1758664479026,-1132.03,0.00030136,10]
[387255764,1758664479035,-1132.03,0.00030136,10]
[387255765,1758664479045,-1132.03,0.00030136,10]
[387255766,1758664479054,-1132.03,0.00030136,10]
[387255767,1758664479064,-1132.03,0.00030136,10]
[387255768,1758664479073,-1132.03,0.00030136,10]
[387255769,1758664479082,-1132.03,0.00030136,10]
[387255770,1758664479091,-1132.03,0.00030136,10]
[387255771,1758664479101,-1132.03700047,0.00030136,10]
[387255772,1758664479111,-403.15,0.00030136,3]
[387255773,1758664479120,-1219.54,0.00030136,3]
[387255774,1758664479129,-422.15,0.00030136,3]
[387255775,1758664479140,-722.3,0.00030136,3]
[387255776,1758664479149,-425.13,0.00030136,3]
[387255777,1758664479158,-463.61,0.00030136,3]
[387255778,1758664479167,-400.81,0.00030136,3]
[387255779,1758664479178,-606.67,0.00030136,3]
[387255780,1758664479187,-558.51,0.00030136,3]
[387255781,1758664479196,-517.79,0.00030136,3]
[387255782,1758664479205,-410.1,0.00030136,3]
[387255783,1758664479215,-513.24,0.00030136,3]
[387255784,1758664479224,-864.38,0.00030136,3]
[387255785,1758664479234,-400.0,0.00030136,3]
[387255786,1758664479243,-263.95,0.00030136,3]
[387255787,1758664479252,-229.73335077,0.00030136,3]
[387255788,1758664479261,-521.02,0.00030136,3]
[387255789,1758664479270,-400.0,0.00030136,3]
[387255790,1758664479279,-199.65084936,0.00030136,3]
[387255791,1758664479289,-701.54,0.00030136,3]
[387255792,1758664479298,-595.8,0.00030136,3]
[387255793,1758664479307,-570.98,0.00030136,3]
[387255794,1758664479317,-761.54,0.00030136,3]
[387255795,1758664479327,-448.15,0.00030136,3]
[387255796,1758664479337,-574.63,0.00030136,3]
[387255797,1758664479346,-599.61,0.00030136,3]
[387255798,1758664479356,-400.0,0.00030136,3]
[387255799,1758664479366,-433.43,0.00030136,3]
[387255800,1758664479375,-1431.46,0.00030136,3]
[387255801,1758664479384,-871.69,0.00030136,3]
[387255802,1758664479393,-500.78,0.00030136,3]
[387255803,1758664479403,-415.37,0.00030136,3]
[387255804,1758664479412,-546.81051807,0.00030136,3]
[387255805,1758664479421,-851.65,0.00030136,3]
[387255806,1758664479435,-514.2,0.00030136,3]
[387255807,1758664479444,-696.09,0.00030136,3]
[387255808,1758664479453,-942.3,0.00030136,3]
[387255809,1758664479462,-483.66,0.00030136,3]
[387255810,1758664479473,-700.73,0.00030136,3]
[387255811,1758664479482,-1323.65,0.00030136,3]
[387255812,1758664479492,-1213.35,0.00030136,3]
[387255813,1758664479502,-432.38,0.00030136,3]
[387255814,1758664479512,-400.0,0.00030136,3]
[387255815,1758664479521,-413.32,0.00030136,3]
[387255816,1758664479531,-600.39,0.00030136,3]
[387255817,1758664479540,-525.79,0.00030136,3]
[387255818,1758664479549,-585.89,0.00030136,3]
[387255819,1758664479559,-634.91,0.00030136,3]
[387255820,1758664479569,-869.19,0.00030136,3]
[387255821,1758664479578,-683.9,0.00030136,3]
[387255822,1758664479587,-655.46,0.00030136,3]
[387255823,1758664479597,-853.3,0.00030136,3]
[387255824,1758664479606,-400.0,0.00030136,3]
[387255825,1758664479616,-684.3,0.00030136,3]
[387255826,1758664479625,-433.77,0.00030136,3]
[387255827,1758664479635,-451.05,0.00030136,3]
[387255828,1758664479644,-1034.82,0.00030136,3]
[387255829,1758664479654,-414.11,0.00030136,3]
[387255830,1758664479664,-400.0,0.00030136,3]
[387255831,1758664479673,-568.34,0.00030136,3]
[387255832,1758664479682,-497.27,0.00030136,3]
[387255833,1758664479692,-400.0,0.00030136,2]
[387255834,1758664479701,-206.24,0.00030136,3]
[387255835,1758664479710,-483.14,0.00030136,3]
[387255836,1758664479720,-442.92,0.00030136,3]
[387255837,1758664479729,-963.02,0.00030136,3]
[387255838,1758664479738,-419.2,0.00030136,3]
[387255839,1758664480136,-495.44,0.00030136,3]
[387255840,1758664480149,-1113.1,0.00030136,3]
[387255841,1758664480158,-564.87,0.00030136,3]
[387255842,1758664480169,-442.1,0.00030136,3]
[387255843,1758664480178,-612.62,0.00030136,3]
[387255844,1758664480188,-544.44,0.00030136,3]
[387255845,1758664480197,-553.48,0.00030136,3]
[387255846,1758664480207,-811.92,0.00030136,3]
[387255847,1758664480216,-866.52,0.00030136,3]
[387255848,1758664480226,-1271.99,0.00030136,3]
[387255849,1758664480236,-555.94,0.00030136,3]
[387255850,1758664480246,-516.66,0.00030136,3]
[387255851,1758664480256,-443.34,0.00030136,3]
[387255852,1758664480265,-460.81,0.00030136,3]
[387255853,1758664480275,-502.53,0.00030136,3]
[387255854,1758664480284,-505.37,0.00030136,3]
[387255855,1758664480294,-542.19,0.00030136,3]
[387255856,1758664480303,-688.7,0.00030136,3]
[387255857,1758664480313,-1015.44,0.00030136,3]
[387255858,1758664480322,-1292.63,0.00030136,3]
[387255859,1758664480332,-1611.73,0.00030136,3]
[387255860,1758664480341,-637.7,0.00030136,3]
[387255861,1758664480351,-660.83,0.00030136,3]
[387255862,1758664480361,-549.84,0.00030136,3]
[387255863,1758664480370,-1262.83,0.00030136,3]
[387255864,1758664480380,-400.0,0.00030136,3]
[387255865,1758664480389,-511.14,0.00030136,3]
[387255866,1758664480399,-1072.23,0.00030136,3]
[387255867,1758664480409,-435.66,0.00030136,3]
[387255868,1758664480419,-446.42,0.00030136,3]
[387255869,1758664480434,-956.24,0.00030136,3]
[387255870,1758664480444,-804.81,0.00030136,3]
[387255871,1758664480453,-493.33,0.00030136,3]
[387255872,1758664480463,-400.0,0.00030136,3]
[387255873,1758664480474,-425.12,0.00030136,3]
[387255874,1758664480484,-536.14,0.00030136,3]
[387255875,1758664480494,-1446.35,0.00030136,3]
[387255876,1758664480505,-647.53,0.00030136,3]
[387255877,1758664480515,-712.76,0.00030136,3]
[387255878,1758664480525,-400.0,0.00030136,3]
[387255879,1758664480534,-742.51,0.00030136,3]
[387255880,1758664480544,-609.25,0.00030136,3]
[387255881,1758664480553,-1004.12,0.00030136,3]
[387255882,1758664480563,-1267.73,0.00030136,3]
[387255883,1758664480573,-1089.2,0.00030136,3]
[387255884,1758664480582,-936.94,0.00030136,3]
[387255885,1758664480592,-400.0,0.00030136,3]
[387255886,1758664480602,-628.73,0.00030136,3]
[387255887,1758664480612,-792.8,0.00030136,3]
[387255888,1758664480621,-718.2,0.00030136,3]
[387255889,1758664480631,-771.65,0.00030136,3]
[387255890,1758664480640,-735.99,0.00030136,3]
[387255891,1758664480649,-724.09,0.00030136,3]
[387255892,1758664480659,-735.82,0.00030136,3]
[387255893,1758664480669,-724.51,0.00030136,3]
[387255894,1758664480678,-590.38,0.00030136,3]
[387255895,1758664480688,-704.47,0.00030136,3]
[387255896,1758664480697,-597.65,0.00030136,3]
[387255897,1758664480707,-644.02,0.00030136,3]
[387255898,1758664480716,-490.6,0.00030136,3]
[387255899,1758664480726,-544.45,0.00030136,3]
[387255900,1758664480735,-1124.92,0.00030136,3]
[387255901,1758664480745,-400.98,0.00030136,3]
[387255902,1758664480754,-1607.1,0.00030136,3]
[387255903,1758664480764,-643.25,0.00030136,3]
[387255904,1758664480773,-702.26,0.00030136,3]
[387255905,1758664480783,-623.69,0.00030136,3]
[387255906,1758664480792,-1080.61,0.00030136,3]
[387255907,1758664480801,-422.24,0.00030136,3]
[387255908,1758664480811,-417.7,0.00030136,3]
[387255909,1758664480820,-909.48,0.00030136,3]
[387255910,1758664480830,-515.95,0.00030136,3]
[387255911,1758664480839,-419.15,0.00030136,3]
[387255912,1758664480848,-421.32,0.00030136,3]
[387255913,1758664480858,-1535.1,0.00030136,3]
[387255914,1758664480867,-610.62,0.00030136,3]
[387255915,1758664480876,-788.82,0.00030136,3]
[387255916,1758664480886,-501.25,0.00030136,3]
[387255917,1758664480895,-400.0,0.00030136,3]
[387255918,1758664480905,-467.58,0.00030136,3]
[387255919,1758664480915,-614.35,0.00030136,3]
[387255920,1758664480924,-387.17,0.00030136,3]
[387255921,1758664480933,-686.69,0.00030136,3]
[387255922,1758664480944,-430.64852508,0.00030136,3]
[387255923,1758664480954,-1284.73,0.00030136,3]
[387255924,1758664480964,-642.36,0.00030136,3]
[387255925,1758664480974,-560.54,0.00030136,3]
[387255926,1758664480983,-1073.37,0.00030136,3]
[387255927,1758664480993,-753.1,0.00030136,3]
[387255928,1758664481004,-545.97,0.00030136,3]
[387255929,1758664481014,-400.0,0.00030136,3]
[387255930,1758664481024,-522.30430217,0.00030136,3]
[387255931,1758664481035,-580.05,0.00030136,3]
[387255932,1758664481045,-1196.06,0.00030136,3]
[387255933,1758664481057,-779.4,0.00030136,3]
[387255934,1758664481067,-1387.31,0.00030136,3]
[387255935,1758664481077,-526.44,0.00030136,3]
[387255936,1758664481087,-914.9,0.00030136,3]
[387255937,1758664481098,-751.05,0.00030136,3]
[387255938,1758664481107,-400.0,0.00030136,3]
[387255939,1758664481118,-585.69,0.00030136,3]
[387255940,1758664481128,-10481.21,0.00030136,3]
[387255941,1758664481137,-1075.59,0.00030136,3]
[387255942,1758664481147,-1243.9,0.00030136,3]
[387255943,1758664481157,-2675.56,0.00030136,3]
[387255944,1758664481167,-400.0,0.00030136,3]
[387255945,1758664481177,-603.56,0.00030136,3]
[387255946,1758664481186,-1687.56,0.00030136,3]
[387255947,1758664481196,-613.2,0.00030136,3]
[387255948,1758664481206,-1380.17,0.00030136,3]
[387255949,1758664481216,-1984.04,0.00030136,3]
[387255950,1758664481225,-637.31,0.00030136,3]
[387255951,1758664481235,-536.31,0.00030136,3]
[387255952,1758664481245,-1960.16,0.00030136,3]
[387255953,1758664481255,-653.4,0.00030136,3]
[387255954,1758664481265,-1811.83,0.00030136,3]
[387255955,1758664481274,-485.31,0.00030136,3]
[387255956,1758664481284,-609.4,0.00030136,3]
[387255957,1758664481294,-1777.36,0.00030136,3]
[387255958,1758664481303,-955.0,0.00030136,3]
[387255959,1758664481313,-3596.07,0.00030136,3]
[387255960,1758664481323,-1530.13,0.00030136,3]
[387255961,1758664481334,-309.72,0.00030136,3]
[387255962,1758664481344,-1065.12,0.00030136,3]
[387255963,1758664481353,-624.46,0.00030136,3]
[387255964,1758664481362,-668.62,0.00030136,3]
[387255965,1758664481371,-766.88,0.00030136,3]
[387255966,1758664481381,-488.82,0.00030136,3]
[387255967,1758664481391,-1866.98,0.00030136,3]
[387255968,1758664481400,-674.88,0.00030136,3]
[387255969,1758664481409,-507.6,0.00030136,3]
[387255970,1758664481419,-1430.39,0.00030136,3]
[387255971,1758664481434,-1005.24,0.00030136,3]
[387255972,1758664481443,-2251.93,0.00030136,3]
[387255973,1758664481453,-706.55,0.00030136,3]
[387255974,1758664481463,-471.06,0.00030136,3]
[387255975,1758664481474,-440.49,0.00030136,3]
[387255976,1758664481483,-1632.87,0.00030136,3]
[387255977,1758664481493,-2172.06,0.00030136,3]
[387255978,1758664481504,-1577.53,0.00030136,3]
[387255979,1758664481514,-573.43,0.00030136,3]
[387255980,1758664481523,-1762.21,0.00030136,3]
[387255981,1758664481532,-2598.87,0.00030136,3]
[387255982,1758664481542,-2106.48,0.00030136,3]
[387255983,1758664481551,-2137.16,0.00030136,3]
[387255984,1758664481560,-1633.99,0.00030136,3]
[387255985,1758664481570,-665.33,0.00030136,3]
[387255986,1758664481580,-504.30591511,0.00030136,3]
[387255987,1758664481590,-507.04,0.00030136,3]
[387255988,1758664481600,-652.14,0.00030136,3]
[387255989,1758664481610,-441.78,0.00030136,3]
[387255990,1758664481620,-2095.57,0.00030136,3]
[387255991,1758664481630,-2272.09,0.00030136,3]
[387255992,1758664481639,-2047.84,0.00030136,3]
[387255993,1758664481650,-425.92,0.00030136,3]
[387255994,1758664481659,-782.31,0.00030136,3]
[387255995,1758664481669,-1845.88,0.00030136,3]
[387255996,1758664481679,-1531.58,0.00030136,3]
[387255997,1758664481688,-1188.08,0.00030136,3]
[387255998,1758664481699,-1490.46,0.00030136,3]
[387255999,1758664481710,-2033.65,0.00030136,3]
[387256000,1758664481719,-2177.65,0.00030136,3]
[387256001,1758664481730,-2728.22,0.00030136,3]
[387256002,1758664481740,-680.61,0.00030136,3]
[387256003,1758664481749,-1405.11,0.00030136,3]
[387256004,1758664481759,-1113.08,0.00030136,3]
[387256005,1758664481769,-1415.66,0.00030136,3]
[387256006,1758664481778,-1698.64,0.00030136,3]
[387256007,1758664481787,-1312.62,0.00030136,3]
[387256008,1758664481797,-769.12,0.00030136,3]
[387256009,1758664481807,-1079.65,0.00030136,3]
[387256010,1758664481817,-916.94,0.00030136,3]
[387256011,1758664481827,-2186.72,0.00030136,3]
[387256012,1758664481837,-546.81,0.00030136,3]
[387256013,1758664481847,-952.65,0.00030136,3]
[387256014,1758664481856,-485.45,0.00030136,3]
[387256015,1758664481866,-643.52,0.00030136,3]
[387256016,1758664481875,-1538.99,0.00030136,3]
[387256017,1758664481885,-400.0,0.00030136,3]
[387256018,1758664481894,-767.66,0.00030136,3]
[387256019,1758664481903,-1510.65,0.00030136,3]
[387256020,1758664481913,-1183.46,0.00030136,3]
[387256021,1758664481923,-1025.71,0.00030136,3]
[387256022,1758664481932,-1292.75,0.00030136,3]
[387256023,1758664481941,-589.78,0.00030136,3]
[387256024,1758664481950,-1576.62,0.00030136,3]
[387256025,1758664481960,-2168.52,0.00030136,3]
[387256026,1758664481969,-1248.87,0.00030136,3]
[387256027,1758664481979,-1438.1,0.00030136,3]
[387256028,1758664481988,-801.34,0.00030136,3]
[387256029,1758664481998,-1989.17,0.00030136,3]
[387256030,1758664482007,-1355.06,0.00030136,3]
[387256031,1758664482016,-1742.92,0.00030136,3]
[387256032,1758664482025,-1035.45,0.00030136,3]
[387256033,1758664482034,-466.56,0.00030136,3]
[387256034,1758664482043,-1515.98,0.00030136,3]
[387256035,1758664482053,-1785.83,0.00030136,3]
[387256036,1758664482062,-835.56,0.00030136,3]
[387256037,1758664482071,-1984.29,0.00030136,3]
[387256038,1758664482080,-1716.89,0.00030136,3]
[387256039,1758664482089,-635.55,0.00030136,3]
[387256040,1758664482099,-786.93,0.00030136,3]
[387256041,1758664482108,-645.64,0.00030136,3]
[387256042,1758664482118,-400.0,0.00030136,3]
[387256043,1758664482130,-2059.55,0.00030136,3]
[387256044,1758664482141,-2306.45,0.00030136,3]
[387256045,1758664482151,-1514.01,0.00030136,3]
[387256046,1758664482160,-400.0,0.00030136,3]
[387256047,1758664482169,-1545.45,0.00030136,3]
[387256048,1758664482179,-2095.63,0.00030136,3]
[387256049,1758664482188,-1430.02,0.00030136,3]
[387256050,1758664482197,-909.31,0.00030136,3]
[387256051,1758664482206,-1827.73,0.00030136,3]
[387256052,1758664482216,-690.64,0.00030136,3]
[387256053,1758664482225,-2101.8,0.00030136,3]
[387256054,1758664482234,-966.9,0.00030136,3]
[387256055,1758664482243,-655.71,0.00030136,3]
[387256056,1758664482253,-1470.41,0.00030136,3]
[387256057,1758664482262,-603.72,0.00030136,3]
[387256058,1758664482271,-5585.99,0.00030136,3]
[387256059,1758664482280,-1883.8,0.00030136,3]
[387256060,1758664482289,-1867.36,0.00030136,3]
[387256061,1758664482299,-1963.55,0.00030136,3]
[387256062,1758664482308,-614.58,0.00030136,3]
[387256063,1758664482318,-952.78,0.00030136,3]
[387256064,1758664482327,-1560.6,0.00030136,3]
[387256065,1758664482337,-1953.23,0.00030136,3]
[387256066,1758664482346,-1674.22,0.00030136,3]
[387256067,1758664482355,-492.65,0.00030136,3]
[387256068,1758664482365,-924.37,0.00030136,3]
[387256069,1758664482374,-1508.32,0.00030136,3]
[387256070,1758664482383,-1865.08,0.00030136,3]
[387256071,1758664482392,-1262.69,0.00030136,3]
[387256072,1758664482401,-1502.94,0.00030136,3]
[387256073,1758664482410,-1473.52,0.00030136,3]
[387256074,1758664482420,-1344.24,0.00030136,3]
[387256075,1758664482433,-957.08,0.00030136,3]
[387256076,1758664482443,-528.66,0.00030136,3]
[387256077,1758664482453,-552.31,0.00030136,3]
[387256078,1758664482463,-2161.43,0.00030136,3]
[387256079,1758664482473,-2128.27,0.00030136,3]
[387256080,1758664482482,-943.67,0.00030136,3]
[387256081,1758664482492,-698.14,0.00030136,3]
[387256082,1758664482646,-956.83,0.00030136,3]
[387256083,1758664482656,-1587.02,0.00030136,3]
[387256084,1758664482665,-428.71,0.00030136,3]
[387256085,1758664482674,-1021.78,0.00030136,3]
[387256086,1758664482683,-1854.69,0.00030136,3]
[387256087,1758664482693,-533.26,0.00030136,3]
[387256088,1758664482702,-7304.35,0.00030136,3]
[387256089,1758664482711,-675.91,0.00030136,3]
[387256090,1758664482720,-1334.3,0.00030136,3]
[387256091,1758664482729,-447.62,0.00030136,3]
[387256092,1758664482738,-803.81,0.00030136,3]
[387256093,1758664482747,-2319.15,0.00030136,3]
[387256094,1758664482756,-400.0,0.00030136,3]
[387256095,1758664482766,-1143.73,0.00030136,3]
[387256096,1758664482775,-1693.96,0.00030136,3]
[387256097,1758664482784,-808.53,0.00030136,3]
[387256098,1758664482793,-1798.02,0.00030136,3]
[387256099,1758664482802,-379.77297993,0.00030136,3]
[387256100,1758664482812,-1265.14,0.00030136,3]
[387256101,1758664482821,-493.9,0.00030136,3]
[387256102,1758664482830,-1501.23,0.00030136,3]
[387256103,1758664482839,-528.22,0.00030136,3]
[387256104,1758664482848,-480.24,0.00030136,3]
[387256105,1758664482858,-400.0,0.00030136,3]
[387256106,1758664482867,-1303.69,0.00030136,3]
[387256107,1758664482876,-1157.48,0.00030136,3]
[387256108,1758664482885,-810.26,0.00030136,3]
[387256109,1758664482895,-676.36,0.00030136,3]
[387256110,1758664482904,-923.87,0.00030136,3]
[387256111,1758664482914,-865.69,0.00030136,3]
[387256112,1758664482923,-1229.06,0.00030136,3]
[387256113,1758664482932,-645.83,0.00030136,3]
[387256114,1758664482942,-1798.6,0.00030136,3]
[387256115,1758664482951,-549.42,0.00030136,3]
[387256116,1758664482960,-404.28,0.00030136,3]
[387256117,1758664482970,-1589.65,0.00030136,3]
[387256118,1758664482979,-559.17,0.00030136,3]
[387256119,1758664482988,-1587.3,0.00030136,3]
[387256120,1758664482998,-1163.2,0.00030136,3]
[387256121,1758664483007,-536.97,0.00030136,3]
[387256122,1758664483016,-400.0,0.00030136,2]
[387256123,1758664483026,-2080.14,0.00030136,3]
[387256124,1758664483036,-529.51,0.00030136,3]
[387256125,1758664483047,-931.36,0.00030136,3]
[387256126,1758664483058,-1619.96,0.00030136,3]
[387256127,1758664483067,-453.19,0.00030136,3]
[387256128,1758664483077,-948.64,0.00030136,3]
[387256129,1758664483086,-400.0,0.00030136,3]
[387256130,1758664483095,-1551.51,0.00030136,3]
[387256131,1758664483104,-1871.37,0.00030136,3]
[387256132,1758664483113,-13739.2,0.00030136,3]
[387256133,1758664483122,-618.32,0.00030136,3]
[387256134,1758664483132,-458.91,0.00030136,3]
[387256135,1758664483141,-657.58,0.00030136,3]
[387256136,1758664483150,-400.0,0.00030136,3]
[387256137,1758664483159,-1506.02,0.00030136,3]
[387256138,1758664483169,-1848.91,0.00030136,3]
[387256139,1758664483178,-514.97,0.00030136,3]
[387256140,1758664483187,-400.0,0.00030136,3]
[387256141,1758664483197,-477.74,0.00030136,3]
[387256142,1758664483206,-1395.95,0.00030136,3]
[387256143,1758664483215,-400.0,0.00030136,3]
[387256144,1758664483224,-1575.42,0.00030136,3]
[387256145,1758664483233,-1347.82,0.00030136,3]
[387256146,1758664483242,-1495.51,0.00030136,3]
[387256147,1758664483251,-525.32,0.00030136,3]
[387256148,1758664483261,-1907.27,0.00030136,3]
[387256149,1758664483270,-1023.51,0.00030136,3]
[387256150,1758664483279,-432.69,0.00030136,3]
[387256151,1758664483288,-1351.02,0.00030136,3]
[387256152,1758664483297,-880.27,0.00030136,3]
[387256153,1758664483306,-548.79,0.00030136,3]
[387256154,1758664483316,-786.35,0.00030136,3]
[387256155,1758664483325,-451.0,0.00030136,3]
[387256156,1758664483334,-1903.53,0.00030136,3]
[387256157,1758664483343,-702.83,0.00030136,3]
[387256158,1758664483352,-2096.52,0.00030136,3]
[387256159,1758664483362,-1019.97,0.00030136,3]
[387256160,1758664483370,-475.27,0.00030136,3]
[387256161,1758664483379,-696.03,0.00030136,3]
[387256162,1758664483388,-419.83,0.00030136,3]
[387256163,1758664483397,-529.1,0.00030136,3]
[387256164,1758664483406,-1931.45,0.00030136,3]
[387256165,1758664483415,-2252.15,0.00030136,3]
[387256166,1758664483426,-601.48,0.00030136,3]
[387256167,1758664483437,-450.0,0.00030136,3]
[387256168,1758664483446,-536.36,0.00030136,3]
[387256169,1758664483456,-516.75,0.00030136,3]
[387256170,1758664483466,-620.93,0.00030136,3]
[387256171,1758664483475,-2161.44,0.00030136,3]
[387256172,1758664483485,-803.72,0.00030136,3]
[387256173,1758664483494,-1607.31,0.00030136,3]
[387256174,1758664483504,-2098.36,0.00030136,3]
[387256175,1758664483513,-1788.33,0.00030136,3]
[387256176,1758664483522,-998.12,0.00030136,3]
[387256177,1758664483531,-3658.05,0.00030136,3]
[387256178,1758664483541,-1550.42,0.00030136,3]
[387256179,1758664483550,-1221.01,0.00030136,3]
[387256180,1758664483559,-1421.09,0.00030136,3]
[387256181,1758664483570,-1581.33,0.00030136,3]
[387256182,1758664483579,-1796.87,0.00030136,3]
[387256183,1758664483588,-515.25,0.00030136,3]
[387256184,1758664483598,-1366.95,0.00030136,3]
[387256185,1758664483607,-510.18,0.00030136,3]
[387256186,1758664483616,-1983.1,0.00030136,3]
[387256187,1758664483625,-566.08,0.00030136,3]
[387256188,1758664483634,-1644.62,0.00030136,3]
[387256189,1758664483644,-703.73,0.00030136,3]
[387256190,1758664483653,-421.65,0.00030136,3]
[387256191,1758664483662,-712.53,0.00030136,3]
[387256192,1758664483671,-838.91,0.00030136,3]
[387256193,1758664483680,-400.0,0.00030136,3]
[387256194,1758664483690,-1691.7,0.00030136,3]
[387256195,1758664483699,-1746.85,0.00030136,3]
[387256196,1758664483707,-586.14,0.00030136,3]
[387256197,1758664483716,-2088.64,0.00030136,3]
[387256198,1758664483725,-1208.42,0.00030136,3]
[387256199,1758664483734,-706.04,0.00030136,3]
[387256200,1758664483743,-1530.19,0.00030136,3]
[387256201,1758664483751,-2924.19,0.00030136,3]
[387256202,1758664483761,-1462.57,0.00030136,3]
[387256203,1758664483770,-1005.85,0.00030136,3]
[387256204,1758664483779,-12997.44,0.00030136,3]
[387256205,1758664483788,-2130.52,0.00030136,3]
[387256206,1758664483797,-7446.15,0.00030136,3]
[387256207,1758664483806,-621.18,0.00030136,3]
[387256208,1758664483815,-1544.2,0.00030136,3]